Cogmind - Beta 13 @@@ ROGUE MODE // 2024.04.04 @ 17:57:44 Player: SLUGGY Result: Destroyed by S-10 Pest with Light Assault Rifle Performance ------------- Evolutions (0) 0 Regions Visited (3) 600 Robots Destroyed (5) 25 Value Destroyed (107) 107 Prototype IDs (0) 0 Alien Tech Used (0) 0 Bonus (0) 0 TOTAL SCORE: 732 Bonus ------- None Cogmind --------- Core Integrity 0/250 Matter 292/300 Energy 100/100 System Corruption 4% Temperature Cool (0) Movement Core (250) Ox4 Location -10/Subcaves Parts ------- > --- POWER (1) -------- (None) > --- PROPULSION (2) --- (None) > --- UTILITY (2) ------ Improved Heat Sink Medium Storage Unit > --- WEAPON (2) ------- Hammer > --- INVENTORY (10) --- Small Storage Unit Propulsion Shielding Propulsion Shielding Hacking Suite Improved Trap Extractor (0/6) EM Pulse Gun EM Pulse Gun EM Pulse Gun Shock Rifle Mining Laser Peak State ------------ > --- POWER ------------ Ion Engine > --- PROPULSION ------- Light Treads Light Treads > --- UTILITY ---------- Improved Heat Sink Medium Storage Unit > --- WEAPON ----------- Shock Rifle Hammer > --- INVENTORY -------- Small Storage Unit Propulsion Shielding Propulsion Shielding Hacking Suite Improved Trap Extractor EM Pulse Gun EM Pulse Gun EM Pulse Gun Mining Laser Mining Laser [Rating: 12] Favorites ----------- Power Light Ion Engine Engine Light Ion Engine Propulsion Light Treads Treads Light Treads Utility Medium Storage Unit Device Seismic Detector Storage Medium Storage Unit Weapon EM Pulse Gun Energy Gun EM Pulse Gun Special Weapon Mining Laser Impact Weapon Hammer Build | -11 -10 -10 -10 ------- Run | Yrd Mat Min Sub Slots Evolved . | . . . . Power . | . . . . Propulsion . | . . . . Utility . | . . . . Weapon . | . . . . Parts Attached 16 | 7 1 8 . Power 2 | 1 . 1 . Engine 2 | 1 . 1 . Core . | . . . . Reactor . | . . . . Propulsion 4 | 2 . 2 . Treads 4 | 2 . 2 . Leg . | . . . . Wheel . | . . . . Hover . | . . . . Flight . | . . . . Utility 4 | 2 1 1 . Device 2 | 1 . 1 . Storage 2 | 1 1 . . Processor . | . . . . Hackware . | . . . . Protection . | . . . . Artifact . | . . . . Weapon 6 | 2 . 4 . Energy Gun 4 | 2 . 2 . Energy Cannon . | . . . . Ballistic Gun . | . . . . Ballistic Cannon . | . . . . Launcher . | . . . . Special Weapon 1 | . . 1 . Impact Weapon 1 | . . 1 . Slashing Weapon . | . . . . Piercing Weapon . | . . . . Special Melee Weapon . | . . . . Unidentified Prototypes . | . . . . Parts Lost 6 | . . 2 4 Power 2 | . . 1 1 Propulsion 2 | . . . 2 Utility 1 | . . 1 . Weapon 1 | . . . 1 Highest Loss Streak 4 | . . 2 4 To Critical Strikes . | . . . . Average Slot Usage (%) 97 | . 100 97 91 Engine 12 | . 14 12 11 Treads 27 | . 28 27 24 Device 13 | . 14 13 14 Storage 14 | . 14 14 14 Energy Gun 20 | . 28 23 . Special Weapon 2 | . . . 11 Impact Weapon 4 | . . 4 14 Naked Turns . | . . . . Heaviest Build 21 | 13 18 21 19 Greatest Support 40 | 40 40 40 40 Greatest Overweight (x) 5 | . . 5 4 Average Overweight (x) . | . . . . Largest Inventory Capacity 10 | 8 10 10 10 Average Capacity 9 | 7 8 10 10 Most Carried 10 | 1 8 10 10 Average Carried 7 | . 3 8 10 Final Capacity 10 | 8 10 10 10 Final Carried 10 | 1 8 10 10 Class Distribution -------------------- 100% | Mutant Dominant Class ---------------- Mutant | -10/Materials Mutant | -10/Mines Mutant | -10/Subcaves Resources | -11 -10 -10 -10 ----------- Run | Yrd Mat Min Sub Matter Collected 345 | . 89 256 . Remotely . | . . . . Salvage Created 196 | 15 135 46 . Parts 9 | 2 7 . . Haulers Intercepted . | . . . . Recyclers Shooed . | . . . . Parts Field Recycled . | . . . . Retrieved Matter . | . . . . Parts Self-Destructed 3 | . . . 3 Prevented . | . . . . Kills | -11 -10 -10 -10 ------- Run | Yrd Mat Min Sub Combat Hostiles Destroyed 5 | . 2 3 . Melee 3 | . . 3 . Guns 2 | . 2 . . Classes Destroyed 4 | 1 2 1 . Tunneler 1 | 1 . . . Operator 2 | . 2 . . Grunt 2 | . 2 . . Assembled 3 | . . 3 . Best Kill Streak 2 | 1 2 2 . Combat Bots Only 2 | . 1 2 . Max Kills in Single Turn 1 | 1 1 1 . Gunslinging . | . . . . Exploded . | . . . . Melee 1 | . . 1 . Uniques/NPCs Destroyed . | . . . . Combat | -11 -10 -10 -10 -------- Run | Yrd Mat Min Sub Hostile Shots Fired 135 | . . 23 112 Missed 38 | . . 5 33 Damage Taken 924 | . . 309 615 Core 254 | . . 33 221 Absorbed by Shields . | . . . . Core Remaining (%) 100 | 100 . . . Volleys Fired 22 | 1 10 11 . Largest 2 | 2 2 2 . Hottest 100 | 80 80 100 . Shots Fired 40 | 2 20 18 . Gun 38 | 2 20 16 . Cannon . | . . . . Launcher . | . . . . Special 2 | . . 2 . Kinetic . | . . . . Thermal 2 | . . 2 . Explosive . | . . . . Electromagnetic 38 | 2 20 16 . Robot Hit Streak 8 | 2 8 3 . Robot Miss Streak 4 | . 2 4 . Penetration Max . | . . . . Secondary Targets . | . . . . Shots Hit Robots 26 | 2 12 12 . Core Hits 10 | 1 5 4 . Critical Kills . | . . . . Critical Parts Destroyed . | . . . . Critical Strikes . | . . . . Melee Attacks 12 | . . 7 5 Impact 12 | . . 7 5 Slashing . | . . . . Piercing . | . . . . Sneak Attacks . | . . . . Combat Hostiles . | . . . . Follow-up Attacks . | . . . . Damage Inflicted 449 | 28 190 231 . Guns 325 | 28 190 107 . Cannons . | . . . . Explosions . | . . . . Melee 124 | . . 124 . Ramming . | . . . . Kinetic . | . . . . Thermal . | . . . . Explosive . | . . . . Electromagnetic 325 | 28 190 107 . Impact 124 | . . 124 . Slashing . | . . . . Piercing . | . . . . Highest Corruption 4 | . . 4 4 Average Corruption 4 | . . 4 4 Corruption Purged . | . . . . Corruption Blocked . | . . . . Effects 10 | . . 4 6 Message Errors 2 | . . 1 1 Matter Fused 3 | . . 1 2 Energy Discharges 3 | . . 1 2 Data Loss (minor) 1 | . . 1 . Alerts 1 | . . . 1 Overload Shots . | . . . . Overflow Damage . | . . . . Projectiles . | . . . . Explosions . | . . . . Melee . | . . . . Knockbacks . | . . . . Impact . | . . . . Kinetic . | . . . . Secondary . | . . . . Self-Inflicted Damage . | . . . . Shots . | . . . . Rammed . | . . . . Targets Rammed . | . . . . Kicked . | . . . . Crushed . | . . . . Highest Temperature 181 | 18 54 181 . Average Temperature 53 | 12 22 90 . Received Heat Transfer 229 | . . 109 120 Siege Activations . | . . . . Robots Corrupted . | . . . . Combat Hostiles . | . . . . Parts Fried 1 | . 1 . . Impact Corruptions . | . . . . Robots Melted . | . . . . Combat Hostiles . | . . . . Parts Melted . | . . . . Heat Transferred . | . . . . Parts Sabotaged . | . . . . Parts Stolen . | . . . . Parts Stripped . | . . . . Power Chain Reactions . | . . . . Alert | -11 -10 -10 -10 ------- Run | Yrd Mat Min Sub Peak Influence 93 | 5 93 . . Initial 3 | . 3 . . Average 20 | . 54 . . Maximum Alert Level . | . . . . Low Security (%) 100 | 100 100 100 . Level 1 . | . . . . Level 2 . | . . . . Level 3 . | . . . . Level 4 . | . . . . Level 5 . | . . . . High Security . | . . . . Max Security . | . . . . Squads Dispatched 2 | . 1 1 . Investigation . | . . . . Extermination . | . . . . Reinforcement 1 | . 1 . . Assault 1 | . . 1 . Garrison . | . . . . Intercept . | . . . . Searches Triggered . | . . . . Construction Impeded . | . . . . Haulers Reinforced . | . . . . Active Scanning Responses . | . . . . Cargo Convoy Interrupts . | . . . . Stealth | -11 -10 -10 -10 --------- Run | Yrd Mat Min Sub Distress Signals . | . . . . Communications Jammed . | . . . . Distress Signals . | . . . . Times Spotted 28 | . 4 4 20 Peak Tracking Total 6 | . 1 2 6 Tactical Retreats 1 | . . . 1 Traps | -11 -10 -10 -10 ------- Run | Yrd Mat Min Sub Traps Triggered 1 | . . 1 . Indirectly . | . . . . Trap Hack Attempts . | . . . . Triggered . | . . . . Disarmed . | . . . . Reprogrammed . | . . . . Reused . | . . . . Traps Extracted . | . . . . Installed . | . . . . Triggered . | . . . . Machines | -11 -10 -10 -10 ---------- Run | Yrd Mat Min Sub Machines Disabled . | . . . . Max in Single Turn . | . . . . Machines Repaired . | . . . . Machines Dismantled . | . . . . Machines Sabotaged . | . . . . Overloaded Fab Kills . | . . . . Hacking | -11 -10 -10 -10 --------- Run | Yrd Mat Min Sub Machines Accessed 2 | . 1 1 . Terminals 1 | . 1 . . Fabricators . | . . . . Repair Stations . | . . . . Recycling Units . | . . . . Scanalyzers . | . . . . Garrison Access . | . . . . Total Hacks 4 | . 3 1 . Successful 2 | . 1 1 . Failed 2 | . 2 . . Catastrophic . | . . . . Database Lockouts . | . . . . Manual 2 | . 2 . . Terminals 3 | . 3 . . Fabricators . | . . . . Repair Stations . | . . . . Recycling Units . | . . . . Scanalyzers . | . . . . Garrison Access . | . . . . Terminal Hacks 1 | . . 1 . Open Door 1 | . . 1 . Fabricator Hacks . | . . . . Repair Station Hacks . | . . . . Recycling Unit Hacks . | . . . . Scanalyzer . | . . . . Garrison Access Hacks . | . . . . Unauthorized Hacks 1 | . 1 . . Terminals 1 | . 1 . . Botnet 1 | . 1 . . Fabricators . | . . . . Repair Stations . | . . . . Recycling Units . | . . . . Scanalyzers . | . . . . Garrison Access . | . . . . Data Cores Recovered 1 | . 1 . . Used . | . . . . Hacking Detections 1 | . 1 . . Full Trace Events 1 | . 1 . . Feedback Events . | . . . . Feedback Blocked . | . . . . Robot Schematics Acquired . | . . . . Robots Built . | . . . . Authchips . | . . . . Time . | . . . . Total Robot Build Rating . | . . . . Part Schematics Acquired . | . . . . Parts Built . | . . . . Authchips . | . . . . Time . | . . . . Total Part Build Rating . | . . . . Parts Repaired . | . . . . Time . | . . . . Parts Recycled . | . . . . Recycled Matter . | . . . . Retrieved Matter . | . . . . Retrieved Components . | . . . . Parts Scanalyzed . | . . . . Part Schematics Acquired . | . . . . Parts Damaged . | . . . . Bothacking | -11 -10 -10 -10 ------------ Run | Yrd Mat Min Sub Used RIF Installer . | . . . . Robots Hacked . | . . . . Non-combat . | . . . . Combat . | . . . . Robot Hacks Applied . | . . . . Relay Couplers Released . | . . . . Fabnet Peak Effective % . | . . . . Robots Rewired . | . . . . Allies Hacked . | . . . . Hacks Repelled . | . . . . Allies | -11 -10 -10 -10 -------- Run | Yrd Mat Min Sub Total Allies 1 | . . 1 . Largest Group 1 | . . 1 . Highest-Rated Group 31 | . . 31 . Highest-Rated Ally 31 | . . 31 . Total Orders . | . . . . Ally Attacks 6 | . . 6 . Total Damage 101 | . . 101 . Kills 1 | . . 1 . Allies Corrupted . | . . . . Allies Melted . | . . . . Intel | -11 -10 -10 -10 ------- Run | Yrd Mat Min Sub Robot Analysis Total . | . . . . Derelict Logs Recovered 2 | . . 1 1 Drone Launches . | . . . . Drone Recoveries . | . . . . Exploration | -11 -10 -10 -10 ------------- Run | Yrd Mat Min Sub Turns Passed 1437 | 76 430 677 254 Spaces Moved 809 | 41 246 376 146 Core 8 | 3 . 1 4 Treads 801 | 38 246 375 142 Legs . | . . . . Wheels . | . . . . Hover . | . . . . Flight . | . . . . Fastest Speed 50 | 50 160 160 160 Average Speed 160 | 151 160 160 162 Slowest Speed 300 | 160 160 300 250 Overloaded Moves . | . . . . Propulsion Burnouts . | . . . . Robots Hopped . | . . . . Cave-ins Triggered . | . . . . Exploration Rate (%) 23 | 5 22 56 12 Regions Visited 3 Branch Regions 2 Pre-discovered Areas 2 | . . . 2 Known Exits Taken . | . . . . Unknown Exits Taken 3 | 1 1 1 . Scrap Searched . | . . . . Spaces Dug . | . . . . Terrain Destroyed . | . . . . Melee . | . . . . Projectile . | . . . . AOE . | . . . . Terrain Rammed . | . . . . Walls Destroyed . | . . . . Machines Disabled . | . . . . Actions | -11 -10 -10 -10 --------- Run | Yrd Mat Min Sub Total 877 | 49 262 412 154 Wait 13 | . . 10 3 Move 806 | 40 245 375 146 Hop . | . . . . Pick Up 8 | 1 6 1 . Fast Attach 12 | 7 . 5 . Attach . | . . . . Detach . | . . . . Swap 4 | . 1 3 . Drop . | . . . . Fire 22 | 1 10 11 . Melee 12 | . . 7 5 Ram . | . . . . Kick . | . . . . Crush . | . . . . Escape Stasis . | . . . . Rewire . | . . . . Trap . | . . . . Miscellaneous . | . . . . Route ------- -11/Scrapyard -10/Materials -10/Mines (discovered 2 exits: [*Mat] / [*Sub]) -10/Subcaves (discovered 1 exit: [*Rec]) History --------- Turn | Location | Event 23 | -11/Scrapyard | Discovered new exit (range 16) 77 | -11/Scrapyard | Entered Materials 286 | -10/Materials | Discovered new exit (range 7) 300 | -10/Materials | Build established: Mutant 507 | -10/Materials | Entered Mines 662 | -10/Mines | Met a Derelict testing a Signal Generator 843 | -10/Mines | Met a Derelict who couldn't figure out how to use a Trap Extractor 934 | -10/Mines | Assembled infested the area 1136 | -10/Mines | Discovered new exit (range 10) 1181 | -10/Mines | Discovered new exit (range 3) 1184 | -10/Mines | Entered Subcaves 1330 | -10/Subcaves | Learned location of Mines (-9) 1376 | -10/Subcaves | Shifting Twisted Machinery released Sub. Beam Cannon 1384 | -10/Subcaves | Discovered new exit (range 15) 1392 | -10/Subcaves | Learned location of Zion (-6) 1392 | -10/Subcaves | Met a Zionite searching for "candidates" 1418 | -10/Subcaves | Core integrity fell below 50% 1430 | -10/Subcaves | Core integrity fell below 20% 1438 | -10/Subcaves | Destroyed by S-10 Pest with Light Assault Rifle Last Messages --------------- 01355_ System corrupted: Energy discharge (-70). Sub. Beam Cannon falls loose from the Twisted Machinery. 01384_ V3-NH7(z): "She is not going to be happy we haven't found any suitable candidates yet." 01384_ S-10 Pest springs to life. 01384_ EXIT=FOUND 01388_ Mining Laser destroyed. 01392_ V3-NH7(z): "Hey you! It's really dangerous down here, I feel that you could die at any moment. For your health and safety might I suggest a trip to Zion?" World map updated: -6/Zion. 01393_ Ion Engine destroyed. 01395_ Lgt. Treads destroyed. 01408_ S-10 Pest destroyed. 01417_ Lgt. Ion Engine fries itself beyond repair. 01417_ Lgt. Treads destroyed. 01420_ Flight Unit fries itself beyond repair. 01423_ System corrupted: Energy discharge (-27). 01423_ Lgt. Assault Rifle fries itself beyond repair. 01426_ Subatomizers dissect the Mak. Flight Unit. Map ----- +----------------------------------------------------+ | ?????????????????????????????????????????????????? | | ?????????????????????????????????????????????????? | | ?????????????????????????????????????????????????? | | ?????????????????????????????????????????????????? | | ?????????????????????????????????????????????????? | | ?????????????????????????????????????????????????? | | ?????????????????????????????????????????????????? | | ?????????????????????????????????????????????????? | | ?????????????????????????????????????????????????? | | ?????????????????????????????????????????????????? | | ?????????????????????????????????????????????????? | | ?????????????????????????????????????????????????? | | ?????????????????????????????????????????????????? | | ?????????????????????????????????????????????????? | | ?????????????????????????????????????????????????? | | ?????????????????????????????????????????????????? | | ?????????????????????##??????????????????????????? | | ?????????????????????# ##????????????????????????? | | ?????????????????????# #????????????????????????? | | ?????????????????????# #???????????????####???### | | ??????????????????#### #??????????????? ###" " | | ??????????????????# #??????????####?# # | | ???????????????????# ############ ### # | | ???????????????????# s # ## # | | ?????????????????### =s% | | ?????????????????# @ ##=## # # | | ????????????????# ### s########### # | | ?????????????# ??####?????????# #???? | | ????????????# ????????????????### ##???? | | ??????????? ## ??????????????????## "]#????? | | ?????????? # ?#????????????????????## #????? | | ????????????## ????????????????????????# #????? | | ???????????? ?????????????????????????##" ##???# | | ???????????? ???????????????????????????## ##### | | ??????????????????????????????????????????#"" | | ?????????????????????????????????????????#""" | | ?????????????????????????????????????????#### ### | | ????????????????????????????????????????????####?? | | ?????????????????????????????????????????????????? | | ?????????????????????????????????????????????????? | | ?????????????????????????????????????????????????? | | ?????????????????????????????????????????????????? | | ?????????????????????????????????????????????????? | | ?????????????????????????????????????????????????? | | ?????????????????????????????????????????????????? | | ?????????????????????????????????????????????????? | | ?????????????????????????????????????????????????? | | ?????????????????????????????????????????????????? | | ?????????????????????????????????????????????????? | | ?????????????????????????????????????????????????? | +----------------------------------------------------+ Best States ------------- Heat Dissipation 39 Energy Generation 10 Energy Capacity 250 Matter Stores 300 Matter Capacity 300 Sight Range 16 Terrain Scan Density 10 Evasion (%) 40 Recoil Reduction 2 Item Schematics ----------------- None Robot Schematics ------------------ None Fabricated ------------ Nothing Alien Tech Used ----------------- None Achievements -------------- None Challenges ------------ None Game ------ Seed AssembledBlastTerrabomb Manual? 0 Play Time 00:10:30 Cumulative 17.7 hours Start 2024.04.04 @ 17:48:40 End 2024.04.04 @ 17:57:44 Sessions 1 Manual Loads 0 Difficulty Rogue Special Mode None Game No. 34 Rogue 34 Adventurer 0 Explorer 0 Win Type - Total 0 Types 0/0/0/0/0/0/0/0/0 Lore% 12 Gallery% 22 Achievement% 22 Wizard Run 0 Options --------- Layout 0 ASCII 0 Keyboard 1 Movement Arrows Keybinds 0 Fullscreen 1 Font 24/Smallcaps Map View 76x50 Zoom Use 0% Tactical HUD 1 Map Filters NONE Filters NONE Steam 1 RUN: 92850f12-8fb5-4382-ae87-db8320594156